bitfinex/quotes_BTCUSD_20251208
["timestamp","ask_amount","ask_price","bid_price","bid_amount"]
[1765222801670,0.02497,90239.0,90237.0,0.22163828]
[1765222801871,0.0222,90240.0,90238.0,0.22163611]
[1765222802078,0.012,90242.0,90240.0,0.2216312]
[1765222802277,0.02497,90241.0,90239.0,0.2216335]
[1765222802532,0.01565,90240.0,90239.0,0.2216335]
[1765222802891,0.04062,90240.0,90239.0,0.2216335]
[1765222803266,0.04062,90240.0,90238.0,0.01180318]
[1765222803267,0.2622512,90240.0,90238.0,0.00072138]
[1765222803466,0.22163611,90238.0,90237.0,0.0001164]
[1765222803714,0.25948611,90238.0,90237.0,0.0001164]
[1765222803919,0.28445611,90238.0,90237.0,0.0001164]
[1765222804130,0.34695772,90238.0,90237.0,0.0001164]
[1765222804332,0.2853476,90238.0,90237.0,0.0001164]
[1765222804941,0.2863476,90238.0,90237.0,0.0001164]
[1765222805155,0.2873476,90238.0,90237.0,0.0001164]
[1765222806354,0.06571149,90238.0,90237.0,0.0001164]
[1765222806609,0.002,90238.0,90237.0,0.22175497]
[1765222806746,0.002,90238.0,90237.0,0.23912635]
[1765222807368,0.001,90238.0,90237.0,0.23912635]
[1765222807809,0.03871232,90251.0,90250.0,0.22160664]
[1765222808005,0.03871232,90251.0,90249.0,0.2216091]
[1765222808006,0.0222,90243.0,90242.0,0.01108131]
[1765222808338,0.06457381,90251.0,90237.0,0.00183778]
[1765222808339,0.22163611,90238.0,90237.0,0.00183778]
[1765222808541,0.26158521,90238.0,90237.0,0.0011164]
[1765222808777,0.30875521,90238.0,90237.0,0.0011164]
[1765222809163,0.30875521,90238.0,90237.0,0.0001164]
[1765222809403,0.2853476,90238.0,90237.0,0.0001164]
[1765222809610,0.2853476,90238.0,90237.0,0.0071164]
[1765222809780,0.2853476,90238.0,90237.0,0.0021164]
[1765222810013,0.2863476,90238.0,90237.0,0.0001164]
[1765222810626,0.2883476,90238.0,90237.0,0.0001164]
[1765222810787,0.35225221,90238.0,90237.0,0.0001164]
[1765222810999,0.2893476,90238.0,90237.0,0.0001164]
[1765222815040,0.29969674,90238.0,90237.0,0.0001164]
[1765222815448,0.29969674,90238.0,90237.0,0.00098223]
[1765222815643,0.56685331,90231.0,90230.0,0.0002]
[1765222816007,0.56685331,90231.0,90220.0,0.0002]
[1765222816008,0.24387787,90221.0,90220.0,0.0002]
[1765222816157,0.28146701,90221.0,90220.0,0.0002]
[1765222816377,0.62810701,90221.0,90220.0,0.0002]
[1765222816728,0.65195815,90221.0,90220.0,0.0002]
[1765222816954,0.73823743,90221.0,90220.0,0.0002]
[1765222817150,0.73823743,90221.0,90220.0,0.00070773]
[1765222817151,0.10264028,90221.0,90220.0,0.00070773]
[1765222817305,0.1019957,90221.0,90220.0,0.00070773]
[1765222818607,0.1029957,90221.0,90220.0,0.00070773]
[1765222818929,0.0468,90221.0,90220.0,0.00070773]
[1765222819143,0.05715815,90221.0,90220.0,0.00070773]
[1765222819296,0.08079815,90221.0,90220.0,0.00070773]
[1765222819500,0.02924,90221.0,90220.0,0.00070773]
[1765222819726,0.02824,90221.0,90220.0,0.00070773]
[1765222820132,0.02724,90221.0,90220.0,0.00070773]
[1765222820335,0.02724,90221.0,90220.0,0.00270773]
[1765222821539,0.05088,90221.0,90220.0,0.00070773]
[1765222821946,0.05088,90221.0,90220.0,0.00570773]
[1765222822173,0.05088,90221.0,90220.0,0.00170773]
[1765222822373,0.07308,90221.0,90220.0,0.00070773]
[1765222822514,0.07308,90221.0,90220.0,0.00370773]
[1765222823346,0.07308,90221.0,90220.0,0.00070773]
[1765222823552,0.07308,90221.0,90220.0,0.00170773]
[1765222824541,0.40644284,90221.0,90220.0,0.00170773]
[1765222824743,0.43031807,90221.0,90220.0,0.00070773]
[1765222824965,0.4303187,90221.0,90220.0,0.00070773]
[1765222825219,0.4303187,90221.0,90210.0,0.0002]
[1765222825220,0.56690245,90211.0,90210.0,0.0002]
[1765222825420,0.62206592,90211.0,90210.0,0.0002]
[1765222825702,0.66958115,90211.0,90210.0,0.0002]
[1765222826664,0.67458115,90211.0,90210.0,0.0002]
[1765222827509,0.65700364,90211.0,90210.0,0.0002]
[1765222827709,0.65070592,90211.0,90210.0,0.0002]
[1765222827905,0.68941824,90211.0,90210.0,0.0002]
[1765222828347,0.43515232,90211.0,90210.0,0.0002]
[1765222828701,0.5658316,90211.0,90210.0,0.0002]
[1765222828907,0.45735232,90211.0,90210.0,0.0002]
[1765222829311,0.67905477,90211.0,90210.0,0.0002]
[1765222830107,0.11215232,90211.0,90210.0,0.22190491]
[1765222830330,0.11215232,90211.0,90210.0,0.0002]
[1765222830531,0.11215232,90211.0,90210.0,0.22190491]
[1765222830975,0.35605477,90211.0,90210.0,0.00049873]
[1765222831183,0.13435232,90211.0,90210.0,0.00049873]
[1765222832089,0.37222276,90211.0,90210.0,0.00049873]
[1765222833519,0.69522276,90211.0,90210.0,0.00049873]
[1765222833874,0.67905477,90211.0,90210.0,0.00049873]
[1765222834129,0.65685477,90211.0,90210.0,0.00049873]
[1765222835169,0.67905477,90211.0,90210.0,0.00049873]
[1765222835370,0.31629477,90211.0,90210.0,0.00049873]
[1765222835719,0.33385477,90211.0,90210.0,0.00049873]
[1765222837295,0.45927362,90211.0,90210.0,0.00049873]
[1765222837491,0.43707362,90211.0,90210.0,0.00049873]
[1765222837693,0.35605477,90211.0,90210.0,0.00049873]
[1765222841075,0.07095232,90211.0,90210.0,0.00049873]
[1765222841243,0.08851232,90211.0,90210.0,0.00049873]
[1765222841651,0.08851232,90211.0,90210.0,0.22220364]
[1765222841856,0.08851232,90211.0,90210.0,0.00049873]
[1765222842032,0.38976827,90211.0,90210.0,0.00049873]
[1765222842238,0.38976827,90211.0,90210.0,0.00149873]
[1765222842650,0.35105477,90211.0,90210.0,0.00149873]
[1765222843707,0.35105477,90211.0,90210.0,0.00049873]
[1765222843866,0.35205477,90211.0,90210.0,0.00049873]
[1765222847077,0.32985477,90211.0,90210.0,0.00049873]
[1765222847198,0.35205477,90211.0,90210.0,0.00049873]
[1765222849516,0.06695232,90211.0,90210.0,0.00049873]
[1765222849718,0.06695232,90211.0,90210.0,0.22220364]
[1765222850259,0.06695232,90211.0,90210.0,0.22292502]
[1765222850434,0.02435,90225.0,90220.0,0.22168033]
[1765222850666,0.01756,90223.0,90220.0,0.22168033]
[1765222850854,0.02793,90221.0,90220.0,0.22168033]
[1765222851074,0.07448,90221.0,90220.0,0.22168033]
[1765222851210,0.01108401,90220.0,90216.0,0.23277466]
[1765222851418,0.03543401,90220.0,90217.0,0.23276987]
[1765222851665,0.02435,90220.0,90217.0,0.23276987]
[1765222851874,0.0339,90221.0,90219.0,0.22168279]
[1765222852245,0.01623,90220.0,90219.0,0.22168279]
[1765222852454,0.04058,90220.0,90219.0,0.22168279]
[1765222852908,0.04158,90220.0,90219.0,0.22168279]
[1765222853212,0.001,90220.0,90219.0,0.22240417]
[1765222853333,0.01133,90228.0,90225.0,0.0110834]
[1765222853539,0.01133,90228.0,90227.0,0.22166313]
[1765222854578,0.25494654,90227.0,90225.0,0.22166783]
[1765222854781,0.01623,90226.0,90225.0,0.22166783]
[1765222854959,0.04058,90226.0,90224.0,0.23275255]
[1765222855352,0.01108377,90222.0,90217.0,0.22168707]
[1765222855577,0.03843,90220.0,90219.0,0.23348721]
[1765222855710,0.0222,90218.0,90215.0,0.01108463]
[1765222855911,0.0222,90218.0,90212.0,0.00023898]
[1765222855912,0.01108463,90215.0,90212.0,0.00023898]
[1765222856125,0.01623,90213.0,90212.0,0.00023898]
[1765222856458,0.26012753,90213.0,90212.0,0.00023898]
[1765222856690,0.28447753,90213.0,90212.0,0.00023898]
[1765222857636,0.28447753,90213.0,90212.0,0.00423898]
[1765222858754,0.28447753,90213.0,90212.0,0.00523898]
[1765222859366,0.28447753,90213.0,90212.0,0.00423898]
[1765222859572,0.28547753,90213.0,90212.0,0.00423898]
[1765222859794,0.28547753,90213.0,90212.0,0.00023898]
[1765222861191,0.32546776,90213.0,90212.0,0.00023898]
[1765222861880,0.64846776,90213.0,90212.0,0.00023898]
[1765222862293,0.65884117,90213.0,90212.0,0.00023898]
[1765222863675,0.65884087,90213.0,90212.0,0.00023898]
[1765222864014,0.64846776,90213.0,90212.0,0.00023898]
[1765222864396,0.05914,90213.0,90212.0,0.00023898]
[1765222864959,0.001,90213.0,90212.0,0.24802035]
[1765222865361,0.03871232,90217.0,90212.0,0.24802035]
[1765222865362,0.03871232,90217.0,90216.0,0.22169016]
[1765222865541,0.01108352,90224.0,90222.0,0.22167496]
[1765222865685,0.23923188,90224.0,90221.0,0.23276075]
[1765222865889,0.01756,90224.0,90222.0,0.22167517]
[1765222866096,0.01133,90228.0,90222.0,0.22167517]
[1765222866097,0.01133,90228.0,90227.0,0.22166313]
[1765222866293,0.01756,90233.0,90231.0,0.22165331]
[1765222866693,0.03871232,90237.0,90234.0,0.22164594]
[1765222866905,0.02276,90234.0,90232.0,0.2327331]
[1765222867144,0.01575,90233.0,90232.0,0.2327331]
[1765222867951,0.01133,90235.0,90234.0,0.22164594]
[1765222868170,0.0117,90239.0,90238.0,0.22163611]
[1765222868712,0.02745,90239.0,90238.0,0.22163611]
[1765222869299,0.01756,90244.0,90243.0,0.22162383]
[1765222869482,0.01767613,90244.0,90243.0,0.22162383]
[1765222870816,0.01767613,90244.0,90243.0,0.22262383]
[1765222871187,0.03342613,90244.0,90243.0,0.22262383]
[1765222871385,0.05618613,90244.0,90243.0,0.001]
[1765222871592,0.09440452,90244.0,90243.0,0.001]
[1765222871813,0.44060452,90244.0,90243.0,0.001]
[1765222872025,0.6622259,90244.0,90243.0,0.001]
[1765222872247,0.6622259,90244.0,90220.0,0.01108401]
[1765222872248,0.01108364,90223.0,90220.0,0.01108401]
[1765222872423,0.01108364,90223.0,90219.0,0.01108413]
[1765222872424,0.04883,90221.0,90219.0,0.01108413]
[1765222872624,0.01108438,90217.0,90212.0,0.23302377]
[1765222872828,0.03752,90213.0,90212.0,0.23302377]
[1765222873271,0.06038,90213.0,90212.0,0.23302377]
[1765222873818,0.06038,90213.0,90212.0,0.00023898]
[1765222874169,0.06038,90213.0,90212.0,0.00423898]
[1765222874533,0.01532,90213.0,90212.0,0.22593897]
[1765222874902,0.01532,90213.0,90212.0,0.22666035]
[1765222875462,0.01131,90221.0,90220.0,0.22168033]
[1765222875670,0.01203,90231.0,90226.0,0.23274886]
[1765222875976,0.01203,90231.0,90228.0,0.22166068]
[1765222875977,0.02322879,90231.0,90228.0,0.22166068]
[1765222876176,0.02286,90230.0,90228.0,0.22166068]
[1765222876338,0.01532,90229.0,90228.0,0.22166068]
[1765222877994,0.01632,90229.0,90228.0,0.22166068]
[1765222878394,0.01632,90229.0,90223.0,0.22167111]
[1765222878395,0.01108315,90227.0,90220.0,0.14632138]
[1765222878557,0.01532,90223.0,90220.0,0.14632138]
[1765222878768,0.01108352,90224.0,90221.0,0.1456]
[1765222878970,0.01532,90222.0,90221.0,0.1456]
[1765222879168,0.23699542,90222.0,90221.0,0.1456]
[1765222879393,0.32165923,90222.0,90221.0,0.1456]
[1765222879591,0.07778381,90222.0,90221.0,0.1456]
[1765222879917,0.32165923,90222.0,90221.0,0.1456]
[1765222880261,0.05492381,90222.0,90221.0,0.1456]
[1765222880477,0.05492381,90222.0,90221.0,0.36827787]
[1765222880926,0.05403232,90222.0,90221.0,0.36827787]
[1765222881908,0.29856774,90222.0,90221.0,0.1466]
[1765222882285,0.31612774,90222.0,90221.0,0.1466]
[1765222882510,0.33832774,90222.0,90221.0,0.1466]
[1765222883125,0.07159232,90222.0,90221.0,0.36827787]
[1765222883703,0.09445232,90222.0,90221.0,0.22267787]
[1765222884311,0.09445232,90222.0,90221.0,0.001]
[1765222884705,0.31612774,90222.0,90221.0,0.001]
[1765222884958,0.33921923,90222.0,90221.0,0.001]
[1765222887323,0.4146835,90222.0,90221.0,0.001]
[1765222888168,0.33921923,90222.0,90221.0,0.001]
[1765222891684,0.64001923,90222.0,90221.0,0.001]
[1765222891920,0.67258395,90222.0,90221.0,0.001]
[1765222892130,0.69646465,90222.0,90221.0,0.001]
[1765222893202,0.69846465,90222.0,90221.0,0.001]
[1765222893417,0.80694393,90222.0,90221.0,0.001]
[1765222894499,0.80694393,90222.0,90212.0,0.00023898]
[1765222894500,0.24389753,90213.0,90212.0,0.00023898]
[1765222894707,0.27124753,90213.0,90212.0,0.00023898]
[1765222894836,0.29410753,90213.0,90212.0,0.00023898]
[1765222895663,0.30447233,90213.0,90212.0,0.00023898]
[1765222895865,0.40364397,90213.0,90212.0,0.00023898]
[1765222896222,0.40564397,90213.0,90212.0,0.00023898]
[1765222896526,0.29610753,90213.0,90212.0,0.00023898]
[1765222896727,0.31366753,90213.0,90212.0,0.00023898]
[1765222897418,0.63666753,90213.0,90212.0,0.00023898]
[1765222897624,0.64702851,90213.0,90212.0,0.00023898]
[1765222898372,0.56690245,90211.0,90210.0,0.0002]
[1765222898588,0.70106271,90211.0,90210.0,0.0002]
[1765222898787,0.72392271,90211.0,90210.0,0.0002]
[1765222898995,0.72392271,90211.0,90185.0,0.01108831]
[1765222898996,0.2439762,90181.0,90163.0,0.01109102]
[1765222899200,0.2768562,90181.0,90166.0,0.01109065]
[1765222899394,0.2997162,90181.0,90180.0,0.00115627]
[1765222900242,0.2997162,90181.0,90180.0,0.00124234]
[1765222900376,0.05574,90181.0,90180.0,0.223021]
[1765222900616,0.01086,90186.0,90185.0,0.22176636]
[1765222900819,0.01086,90186.0,90185.0,0.22248774]
[1765222900820,0.02842,90186.0,90185.0,0.22248774]
[1765222901021,0.02842,90186.0,90185.0,0.22329455]
[1765222901419,0.04374,90186.0,90185.0,0.22329455]
[1765222901682,0.01203,90190.0,90187.0,0.23284804]
[1765222901827,0.01203,90190.0,90189.0,0.22175653]
[1765222902034,0.01203,90190.0,90189.0,0.22247791]
[1765222902549,0.05104,90190.0,90189.0,0.22247791]
[1765222903354,0.02194647,90200.0,90196.0,0.22173932]
[1765222903355,0.01086,90200.0,90196.0,0.22173932]
[1765222903594,0.01086,90200.0,90199.0,0.22173194]
[1765222903879,0.02842,90200.0,90199.0,0.22173194]
[1765222904051,0.04343,90200.0,90199.0,0.22173194]
[1765222905271,0.02842,90200.0,90199.0,0.22173194]
[1765222905705,0.06712,90200.0,90199.0,0.22173194]
[1765222905911,0.04343,90200.0,90199.0,0.22173194]
[1765222906113,0.02369,90207.0,90206.0,0.22171474]
[1765222906333,0.02369,90207.0,90201.0,0.01108635]
[1765222906334,0.0222,90204.0,90202.0,0.23281077]
[1765222906491,0.01501,90202.0,90199.0,0.23353964]
[1765222906868,0.01501,90200.0,90199.0,0.23453991]
[1765222907048,0.01501,90200.0,90199.0,0.23353991]
[1765222907397,0.0387,90200.0,90180.0,0.00028607]
[1765222907599,0.2217576,90189.0,90184.0,0.23285535]
[1765222907847,0.03328844,90184.0,90181.0,0.00072138]
[1765222908002,0.02689,90182.0,90181.0,0.00072138]
[1765222908428,0.05058,90182.0,90181.0,0.00072138]
[1765222909431,0.05058,90182.0,90181.0,0.00172138]
[1765222909706,0.01108794,90188.0,90185.0,0.22176437]
[1765222909942,0.01108807,90187.0,90181.0,0.23658393]
[1765222910142,0.01501,90182.0,90181.0,0.00172138]
[1765222910582,0.01501,90182.0,90181.0,0.00372138]
[1765222911328,0.01501,90182.0,90181.0,0.00172138]
[1765222911659,0.01501,90182.0,90181.0,0.00272138]
[1765222911866,0.01501,90182.0,90181.0,0.00172138]
[1765222912762,0.01501,90182.0,90181.0,0.00072138]
[1765222913218,0.01501,90182.0,90181.0,0.00364776]
[1765222913434,0.03408,90190.0,90187.0,0.22175904]
[1765222913843,0.01501,90188.0,90186.0,0.01108819]
[1765222914042,0.01501,90187.0,90186.0,0.2328521]
[1765222914330,0.01108844,90184.0,90181.0,0.00172138]
[1765222914542,0.01501,90182.0,90181.0,0.00172138]
[1765222914995,0.2439762,90181.0,90180.0,0.00028607]
[1765222915181,0.2589862,90181.0,90180.0,0.00028607]
[1765222915357,0.2826762,90181.0,90180.0,0.00028607]
[1765222916736,0.32138852,90181.0,90180.0,0.00328607]
[1765222916878,0.32138852,90181.0,90180.0,0.00428607]
[1765222917525,0.0609,90181.0,90180.0,0.22606473]
[1765222917755,0.0387,90181.0,90180.0,0.22606473]
[1765222918562,0.0387,90181.0,90180.0,0.00428607]
[1765222918784,0.2604762,90181.0,90180.0,0.00428607]
[1765222920346,0.0387,90181.0,90180.0,0.00428607]
[1765222920595,0.0387,90181.0,90180.0,0.22606473]
[1765222920814,0.2604762,90181.0,90180.0,0.00524234]
[1765222921368,0.0387,90181.0,90180.0,0.227021]
[1765222921575,0.2826762,90181.0,90180.0,0.00524234]
[1765222922597,0.2826762,90181.0,90180.0,0.00224234]
[1765222922805,0.2856762,90181.0,90180.0,0.00224234]
[1765222923009,0.2856762,90181.0,90180.0,0.00124234]
[1765222923293,0.61604795,90181.0,90180.0,0.00124234]
[1765222923494,0.61604795,90181.0,90170.0,0.0002]
[1765222923495,0.2440008,90171.0,90170.0,0.0002]
[1765222923705,0.2778308,90171.0,90170.0,0.00031644]
[1765222923903,0.3020708,90171.0,90170.0,0.00031644]
[1765222925503,0.05698232,90171.0,90170.0,0.00031644]
[1765222925681,0.07654232,90171.0,90170.0,0.00031644]
[1765222926022,0.07654232,90171.0,90170.0,0.2221197]
[1765222926254,0.07654232,90171.0,90170.0,0.22284108]
[1765222926255,0.004,90171.0,90170.0,0.22284108]
[1765222926416,0.01108831,90185.0,90180.0,0.01108893]
[1765222926417,0.01108844,90184.0,90180.0,0.01108893]
[1765222926616,0.23286743,90181.0,90178.0,0.23287053]
[1765222926823,0.0222,90182.0,90179.0,0.23287003]
[1765222927034,0.01627,90180.0,90179.0,0.23287017]
[1765222927393,0.04051,90180.0,90179.0,0.23287017]
[1765222927808,0.05159893,90180.0,90177.0,0.23287419]
[1765222928058,0.01627,90178.0,90177.0,0.23287419]
[1765222928643,0.24600471,90186.0,90177.0,0.23287419]
[1765222928644,0.00089149,90189.0,90188.0,0.22175899]
[1765222928850,0.01196,90201.0,90200.0,0.22172949]
[1765222929026,0.04579,90201.0,90199.0,0.22173194]
[1765222929227,0.04051,90200.0,90199.0,0.22173194]
[1765222930036,0.04051,90200.0,90199.0,0.22184838]
[1765222930245,0.04051,90200.0,90199.0,0.00011644]
[1765222930627,0.04051,90200.0,90199.0,0.00211644]
[1765222931480,0.11854269,90200.0,90199.0,0.00211644]
[1765222932001,0.04051,90200.0,90199.0,0.00211644]
[1765222933552,0.06271,90200.0,90199.0,0.00211644]
[1765222934229,0.06360149,90200.0,90199.0,0.00211644]
[1765222934793,0.28533098,90200.0,90199.0,0.00211644]
[1765222934978,0.26313098,90200.0,90199.0,0.00211644]
[1765222935204,0.39710245,90200.0,90199.0,0.00211644]
[1765222935403,0.27349772,90200.0,90199.0,0.00011644]
[1765222935678,0.27349772,90200.0,90199.0,0.00111644]
[1765222936017,0.29569772,90200.0,90199.0,0.00011644]
[1765222936626,0.31325772,90200.0,90199.0,0.00011644]
[1765222937162,0.30389098,90200.0,90199.0,0.00011644]
[1765222937364,0.37709507,90200.0,90199.0,0.00011644]
[1765222937543,0.30389098,90200.0,90199.0,0.00011644]
[1765222939350,0.28169098,90200.0,90199.0,0.00011644]
[1765222939551,0.30389098,90200.0,90199.0,0.00011644]
[1765222939751,0.28169098,90200.0,90199.0,0.00011644]
[1765222940074,0.38541497,90200.0,90199.0,0.00011644]
[1765222940869,0.28169098,90200.0,90199.0,0.00011644]
[1765222941067,0.30389098,90200.0,90199.0,0.00011644]
[1765222941789,0.26413098,90200.0,90199.0,0.00011644]
[1765222941951,0.28169098,90200.0,90199.0,0.00011644]
[1765222942393,0.30389098,90200.0,90199.0,0.00011644]
[1765222942602,0.04240149,90200.0,90199.0,0.00011644]
[1765222942910,0.03572149,90200.0,90199.0,0.00111644]
[1765222943278,0.27986098,90200.0,90199.0,0.00111644]
[1765222943886,0.05813149,90200.0,90199.0,0.00111644]
[1765222944118,0.30206098,90200.0,90199.0,0.00111644]
[1765222944568,0.08033149,90200.0,90199.0,0.00111644]
[1765222944819,0.30206098,90200.0,90199.0,0.00111644]
[1765222946640,0.30206098,90200.0,90199.0,0.22284838]
[1765222946641,0.08033149,90200.0,90199.0,0.22284838]
[1765222947017,0.08033149,90200.0,90199.0,0.00111644]
[1765222947200,0.30206098,90200.0,90199.0,0.00111644]
[1765222947604,0.08033149,90200.0,90199.0,0.00111644]
[1765222947828,0.06277149,90200.0,90199.0,0.00111644]
[1765222948004,0.03472149,90200.0,90199.0,0.00111644]
[1765222948347,0.30206098,90200.0,90199.0,0.00111644]
[1765222949141,0.08033149,90200.0,90199.0,0.00111644]
[1765222949344,0.30206098,90200.0,90199.0,0.00111644]
[1765222950150,0.08033149,90200.0,90199.0,0.00111644]
[1765222950569,0.30206098,90200.0,90199.0,0.00111644]
[1765222954366,0.07944,90200.0,90199.0,0.22284838]
[1765222954669,0.01196,90201.0,90200.0,0.23281115]
[1765222954670,0.01756,90201.0,90200.0,0.23281115]
[1765222955492,0.01756,90201.0,90199.0,0.00183782]
[1765222955864,0.25926949,90200.0,90199.0,0.00011644]
[1765222956078,0.59265137,90200.0,90199.0,0.00011644]
[1765222956283,0.63997479,90200.0,90199.0,0.00011644]
[1765222958077,0.64086628,90200.0,90199.0,0.00011644]
[1765222958818,0.64086628,90200.0,90166.0,0.22181229]
[1765222958819,0.22179588,90173.0,90163.0,0.01109102]
[1765222959090,0.22179588,90173.0,90164.0,0.0110909]
[1765222959091,0.2934082,90173.0,90164.0,0.0110909]
[1765222959308,0.33990969,90173.0,90165.0,0.01109077]
[1765222959446,0.33990969,90173.0,90164.0,0.0110909]
[1765222959633,0.33990969,90173.0,90165.0,0.01109077]
[1765222960130,0.33990969,90173.0,90162.0,0.23291366]
[1765222960331,0.33990969,90173.0,90162.0,0.01109114]
[1765222960534,0.31770969,90173.0,90162.0,0.23291393]
[1765222960681,0.33990969,90173.0,90163.0,0.01109102]
[1765222961078,0.33990969,90173.0,90161.0,0.01109127]
[1765222961260,0.33990969,90173.0,90160.0,0.01109139]
[1765222961705,0.33990969,90173.0,90159.0,0.23291965]
[1765222961907,0.33990969,90173.0,90160.0,0.01109139]
[1765222962116,0.34090969,90173.0,90163.0,0.01109102]
[1765222962290,0.34190969,90173.0,90163.0,0.01109102]
[1765222962621,0.34190969,90173.0,90164.0,0.0110909]
[1765222963344,0.34190969,90173.0,90163.0,0.01109102]
[1765222963474,0.34190969,90173.0,90164.0,0.0110909]
[1765222963684,0.34190969,90173.0,90160.0,0.01109139]
[1765222963883,0.34190969,90173.0,90164.0,0.0110909]
[1765222964133,0.34190969,90173.0,90163.0,0.01109102]
[1765222964457,0.34190969,90173.0,90162.0,0.23291393]
[1765222965017,0.34190969,90173.0,90163.0,0.01109102]
[1765222965218,0.31970969,90173.0,90151.0,0.0110925]
[1765222965579,0.64270969,90173.0,90151.0,0.23294181]
[1765222965725,0.66490969,90173.0,90152.0,0.01109237]
[1765222965939,0.77338897,90173.0,90154.0,0.01109213]
[1765222966266,0.77338897,90173.0,90153.0,0.01109225]
[1765222966413,0.77338897,90173.0,90154.0,0.01109213]
[1765222966855,0.77338897,90173.0,90155.0,0.011092]
[1765222967043,0.77338897,90173.0,90156.0,0.01109188]
[1765222967370,0.77338897,90173.0,90154.0,0.01109213]
[1765222968124,0.77338897,90173.0,90153.0,0.01109225]
[1765222968331,0.77338897,90173.0,90154.0,0.221842]
[1765222968745,0.77338897,90173.0,90149.0,0.23294665]
[1765222968942,0.77338897,90173.0,90152.0,0.01109237]
[1765222969258,0.77338897,90173.0,90153.0,0.01109225]
[1765222969455,0.75118897,90173.0,90152.0,0.01109237]
[1765222969660,0.77338897,90173.0,90151.0,0.0110925]
[1765222969953,0.77338897,90173.0,90158.0,0.01109163]
[1765222970156,0.77338897,90173.0,90159.0,0.01109151]
[1765222970359,0.77338897,90173.0,90160.0,0.01109139]
[1765222970540,0.77338897,90173.0,90155.0,0.011092]
[1765222970741,0.5448008,90171.0,90140.0,0.0002]
[1765222971010,0.24405,90151.0,90140.0,0.0002]
[1765222971210,0.24405,90151.0,90150.0,0.00028597]
[1765222971211,0.32705232,90151.0,90150.0,0.00028597]
[1765222971349,0.35034232,90151.0,90150.0,0.00028597]
[1765222972289,0.35034232,90151.0,90150.0,0.00328597]
[1765222972795,0.35034232,90151.0,90150.0,0.00428597]
[1765222974195,0.41621032,90151.0,90150.0,0.00328597]
[1765222974395,0.41621032,90151.0,90150.0,0.00028597]
[1765222974610,0.41621032,90151.0,90150.0,0.00128597]
[1765222974943,0.41721032,90151.0,90150.0,0.00128597]
[1765222975161,0.41721032,90151.0,90150.0,0.00028597]
[1765222975322,0.41821032,90151.0,90150.0,0.00028597]
[1765222979032,0.35234232,90151.0,90150.0,0.00028597]
[1765222979429,0.35234232,90151.0,90150.0,0.00094377]
[1765222980597,0.67534232,90151.0,90150.0,0.00094377]
[1765222981338,0.63558232,90151.0,90150.0,0.00094377]
[1765222981545,0.67534232,90151.0,90150.0,0.00094377]
[1765222982383,0.65314232,90151.0,90150.0,0.00094377]
[1765222982643,0.67534232,90151.0,90150.0,0.00094377]
[1765222983422,0.68569218,90151.0,90150.0,0.00094377]
[1765222983854,0.66813218,90151.0,90150.0,0.00094377]
[1765222983996,0.68569218,90151.0,90150.0,0.00094377]
[1765222984200,0.79417146,90151.0,90150.0,0.00094377]
[1765222985648,0.68569218,90151.0,90150.0,0.00094377]
[1765222985882,0.67534232,90151.0,90150.0,0.00094377]
[1765222986769,0.65778232,90151.0,90150.0,0.00094377]
[1765222986981,0.67534232,90151.0,90150.0,0.00094377]
[1765222987648,0.65314232,90151.0,90150.0,0.00094377]
[1765222987861,0.67534232,90151.0,90150.0,0.00094377]
[1765222989586,0.65314232,90151.0,90150.0,0.00094377]
[1765222990371,0.66350963,90151.0,90150.0,0.00094377]
[1765222992806,0.68570963,90151.0,90150.0,0.00094377]
[1765222994131,0.70961903,90151.0,90150.0,0.00094377]
[1765222994635,0.68570963,90151.0,90150.0,0.00094377]
[1765222994780,0.79418891,90151.0,90150.0,0.00094377]
[1765222995180,0.70962688,90151.0,90150.0,0.00094377]
[1765222997451,0.68742688,90151.0,90150.0,0.00094377]
[1765222997836,0.70962688,90151.0,90150.0,0.00094377]
[1765222999762,0.06301456,90151.0,90150.0,0.22351761]
[1765222999973,0.01956,90151.0,90150.0,0.22351761]
[1765223000795,0.01956,90151.0,90150.0,0.23916761]
[1765223001277,0.01956,90151.0,90150.0,0.22351761]
[1765223001513,0.01856,90151.0,90150.0,0.22351761]
[1765223002040,0.01856,90151.0,90150.0,0.22551761]
[1765223002507,0.01756,90151.0,90150.0,0.22551761]
[1765223002712,0.01756,90151.0,90150.0,0.23051761]
[1765223002914,0.05041232,90159.0,90158.0,0.22183278]
[1765223003119,0.05041232,90159.0,90156.0,0.01109188]
[1765223003120,0.02286,90158.0,90156.0,0.23292826]
[1765223003300,0.0222,90152.0,90151.0,0.0110925]
[1765223003967,0.0222,90157.0,90156.0,0.2218377]
[1765223004318,0.06148,90157.0,90156.0,0.22531607]
[1765223005524,0.06148,90157.0,90156.0,0.22231607]
[1765223006471,0.01163,90163.0,90159.0,0.22183032]
[1765223006679,0.01163,90163.0,90161.0,0.22182495]
[1765223006852,0.03383,90163.0,90162.0,0.2221219]
[1765223007262,0.05025,90163.0,90162.0,0.2221219]
[1765223007448,0.02805,90163.0,90162.0,0.22284328]
[1765223008683,0.02805,90163.0,90162.0,0.00102034]
[1765223008964,0.05091,90163.0,90162.0,0.22384328]
[1765223009573,0.05091,90163.0,90162.0,0.22284328]
[1765223009996,0.05091,90163.0,90162.0,0.22584328]
[1765223010403,0.05091,90163.0,90162.0,0.22684328]
[1765223011258,0.29493048,90163.0,90162.0,0.00502034]
[1765223013192,0.29493048,90163.0,90162.0,0.00429896]
[1765223014033,0.07311,90163.0,90162.0,0.00429896]
[1765223014708,0.02805,90163.0,90162.0,0.2261219]
[1765223014878,0.01756,90164.0,90163.0,0.22182048]
[1765223015089,0.01756,90164.0,90163.0,0.22254186]
[1765223015294,0.01756,90164.0,90163.0,0.23274186]
[1765223015680,0.01756,90164.0,90163.0,0.23144186]
[1765223015973,0.01756,90164.0,90163.0,0.23444186]
[1765223016807,0.01756,90172.0,90171.0,0.2218008]
[1765223017013,0.07904,90172.0,90168.0,0.22180753]
[1765223017346,0.02812,90169.0,90167.0,0.22180907]
[1765223017527,0.01642,90168.0,90167.0,0.22180907]
[1765223017689,0.03928,90168.0,90167.0,0.22180907]
[1765223018111,0.01109065,90166.0,90163.0,0.00072138]
[1765223018312,0.01642,90164.0,90163.0,0.23363088]
[1765223018674,0.01642,90164.0,90157.0,0.01109176]
[1765223018675,0.01109114,90162.0,90156.0,0.1456]
[1765223018882,0.03862,90157.0,90156.0,0.1456]
[1765223019103,0.06148,90157.0,90156.0,0.1456]
[1765223019492,0.06148,90157.0,90156.0,0.3674377]
[1765223020094,0.03928,90157.0,90156.0,0.3674377]
[1765223020341,0.03862,90157.0,90156.0,0.3674377]
[1765223020550,0.06148,90157.0,90156.0,0.2228377]
[1765223020753,0.01756,90161.0,90160.0,0.22182786]
[1765223020919,0.01756,90161.0,90160.0,0.22254924]